Cogmind - Beta 15 @@@ ROGUE MODE // 2025.10.13 @ 16:13:39 Player: Bean Result: Destroyed by C-35 Carver with Carbide Saw Performance ------------- Evolutions (5) 2500 Regions Visited (7) 1400 Robots Destroyed (136) 680 Value Destroyed (4219) 4219 Prototype IDs (4) 80 Alien Tech Used (0) 0 Bonus (666) 666 TOTAL SCORE: 9545 Bonus ------- High Alert Combat Kills 91 Follower Combat Kills 75 Entered DSFs 500 Cogmind --------- Core Integrity 0/1000 Matter 288/300 Energy 98/100 System Corruption 0% Temperature Cool (0) Movement Core (50) Location -5/DSF Parts ------- > --- POWER (2) -------- (None) > --- PROPULSION (5) --- (None) > --- UTILITY (6) ------ (None) > --- WEAPON (4) ------- (None) > --- INVENTORY (5) ---- Improved Kinecellerator Peak State ------------ > --- POWER ------------ Enhanced Nuclear Core Enhanced Nuclear Core > --- PROPULSION ------- Advanced Treads Armored Medium Treads Armored Medium Treads Armored Medium Treads Armored Medium Treads > --- UTILITY ---------- Improved Heat Sink Advanced Heat Sink Advanced Heat Sink Enhanced Optical Array > --- WEAPON ----------- Gatling Laser Plasma Rifle Gauss Rifle Gauss Cannon > --- INVENTORY -------- Enhanced Nuclear Core Advanced Treads Improved Heat Sink Improved Heat Sink Gatling Laser [Rating: 73] Favorites ----------- Power Enhanced Nuclear Core Engine Ion Engine Power Core Enhanced Nuclear Core Propulsion Aluminum Leg Treads Armored Medium Treads Leg Aluminum Leg Hover Unit Combat Airjet Flight Unit Improved Flight Unit Utility Improved Heat Sink Device Improved Heat Sink Storage Small Storage Unit Processor Signal Interpreter Protection Light Armor Plating Weapon Particle Gun Energy Gun Particle Gun Energy Cannon Advanced Beam Cannon Ballistic Gun Gauss Rifle Ballistic Cannon Gauss Cannon Launcher Grenade Launcher Slashing Weapon Blade Saw Special Melee Weapon Datajack Build | -11 -10 -9 -8 -7 -6 -5 -5 ------- Run | Yrd Mat Mat Mat Fac Fac Fac DSF Slots Evolved 10 | . . 2 2 2 2 2 . Power 1 | . . . 1 . . . . Propulsion 3 | . . 1 . 1 1 . . Utility 4 | . . 1 . . 1 2 . Weapon 2 | . . . 1 1 . . . Parts Attached 113 | 7 11 19 39 19 18 . . Power 17 | 1 1 3 8 2 2 . . Engine 11 | 1 1 3 5 . 1 . . Core 6 | . . . 3 2 1 . . Reactor . | . . . . . . . . Propulsion 33 | 2 1 6 13 6 5 . . Treads 13 | . . 2 3 4 4 . . Leg 15 | 2 1 4 6 2 . . . Wheel . | . . . . . . . . Hover 1 | . . . . . 1 . . Flight 4 | . . . 4 . . . . Utility 27 | 2 5 4 6 4 6 . . Device 22 | 1 4 3 6 3 5 . . Storage 1 | 1 . . . . . . . Processor 2 | . 1 . . . 1 . . Hackware . | . . . . . . . . Protection 2 | . . 1 . 1 . . . Artifact . | . . . . . . . . Weapon 36 | 2 4 6 12 7 5 . . Energy Gun 21 | 2 1 5 7 3 3 . . Energy Cannon 1 | . . 1 . . . . . Ballistic Gun 7 | . 1 . 3 2 1 . . Ballistic Cannon 3 | . . . 1 2 . . . Launcher 2 | . 1 . 1 . . . . Special Weapon . | . . . . . . . . Impact Weapon . | . . . . . . . . Slashing Weapon 1 | . . . . . 1 . . Piercing Weapon . | . . . . . . . . Special Melee Weapon 1 | . 1 . . . . . . Unidentified Prototypes 4 | . . 1 1 2 . . . Parts Lost 45 | . 5 11 13 1 15 . . Power 7 | . 1 1 2 . 3 . . Propulsion 12 | . 2 2 3 1 4 . . Utility 12 | . 1 4 3 . 4 . . Weapon 14 | . 1 4 5 . 4 . . Highest Loss Streak 13 | . 4 6 7 1 13 . . To Critical Strikes . | . . . . . . . . Average Backups 3 | 1 4 2 3 4 3 . 1 Power . | . 1 . . 1 . . . Propulsion . | . . . . 1 . . . Utility . | . 1 . . . 1 . 1 Weapon 1 | . 1 . 1 1 . . . Tool/Special . | . . . . . . . . Unused Backups 14 | . 2 3 4 4 . . 1 Power 6 | . . 3 1 2 . . . Propulsion 1 | . . . . 1 . . . Utility 3 | . 1 . . 1 . . 1 Weapon 4 | . 1 . 3 . . . . Tool/Special . | . . . . . . . . Average Slot Usage (%) 90 | . 94 78 93 96 88 . . Engine 8 | . 13 10 11 1 . . . Core 5 | . . . 5 13 11 . . Treads 11 | . . 6 11 17 28 . . Leg 13 | . 23 17 13 10 . . . Device 18 | . 13 20 23 23 17 . . Storage 1 | . 7 . . . . . . Processor 3 | . 6 2 . . 5 . . Energy Gun 19 | . 21 17 23 16 15 . . Ballistic Gun 2 | . . . 2 6 1 . . Ballistic Cannon 2 | . . . . 6 4 . . Peak Build Rating 73 | 9 9 11 32 58 73 . . Average Rating 26 | 5 7 8 23 48 61 . . On Entrance 14 | . 9 6 9 31 58 . . Naked Turns 117 | . . . . . 1 57 59 Heaviest Build 44 | 14 16 16 32 38 44 . . Greatest Support 130 | 20 20 40 64 108 130 3 3 Greatest Overweight (x) 5 | 1 . 2 5 1 . . . Average Overweight (x) . | . . . . . . . . Largest Inventory Capacity 8 | 8 8 5 5 5 5 5 5 Average Capacity 5 | 7 6 5 5 5 5 5 5 Most Carried 8 | 3 8 5 5 5 5 1 1 Average Carried 3 | 1 4 2 3 4 3 . 1 Final Capacity 8 | 8 5 5 5 5 5 5 5 Final Carried 4 | 2 4 4 3 4 . 1 1 Class Distribution -------------------- 37% | Mutant 26% | Scavenger-Gunner 15% | Scavenger-Skirmisher 9% | Scavenger-Mutant 5% | Skirmisher 3% | Scavenger-Tank Dominant Class ---------------- Mutant | -10/Materials Scavenger-Mutant | -9/Materials Scavenger-Gunner | -8/Materials Scavenger-Skirmisher | -7/Factory Scavenger-Skirmisher | -6/Factory Mutant | -5/Factory Mutant | -5/DSF Resources | -11 -10 -9 -8 -7 -6 -5 -5 ----------- Run | Yrd Mat Mat Mat Fac Fac Fac DSF Matter Collected 2475 | 270 173 234 801 515 471 . 11 Remotely . | . . . . . . . . Salvage Created 4515 | 308 422 548 1591 731 915 . . Parts 230 | 26 20 36 69 41 38 . . Haulers Intercepted 1 | . 1 . . . . . . Recyclers Shooed 6 | . . . 1 2 3 . . Parts Field Recycled . | . . . . . . . . Retrieved Matter . | . . . . . . . . Parts Self-Destructed . | . . . . . . . . Prevented . | . . . . . . . . Kills | -11 -10 -9 -8 -7 -6 -5 -5 ------- Run | Yrd Mat Mat Mat Fac Fac Fac DSF Combat Hostiles Destroyed 97 | . 10 15 39 15 18 . . Melee 1 | . . 1 . . . . . Guns 72 | . 9 13 27 9 14 . . Cannons 14 | . . . 4 6 4 . . AOE 7 | . . . 7 . . . . Classes Destroyed 15 | 3 4 1 6 1 . . . Worker 8 | 2 . . 2 2 2 . . Builder 6 | . . . 4 . 2 . . Tunneler 10 | 9 . . . 1 . . . Hauler 1 | . 1 . . . . . . Recycler 4 | 1 . . 3 . . . . Mechanic 1 | . . . 1 . . . . Watcher 8 | . 3 . 3 2 . . . Swarmer 24 | . 3 4 13 4 . . . Grunt 48 | . 7 8 17 8 8 . . Brawler 2 | . . . 1 . 1 . . Sentry 12 | . . 3 4 1 4 . . Specialist 2 | . . . 2 . . . . Hunter 4 | . . . 1 1 2 . . Programmer 4 | . . . . 2 2 . . Heavy 2 | . . . 1 . 1 . . Best Kill Streak 22 | 6 2 4 22 5 6 . . Combat Bots Only 13 | . 2 4 13 4 4 . . Max Kills in Single Turn 6 | 1 1 1 6 3 2 . . Gunslinging 1 | . . . 1 . . . . Exploded 5 | . . . 5 . . . . Melee 1 | . . 1 . . . . . Uniques/NPCs Destroyed . | . . . . . . . . Combat | -11 -10 -9 -8 -7 -6 -5 -5 -------- Run | Yrd Mat Mat Mat Fac Fac Fac DSF Hostile Shots Fired 735 | . 71 137 176 37 273 2 39 Missed 190 | . 19 38 52 10 60 . 11 Hits 545 | . 52 99 124 27 213 2 28 Melee 22 | . . . 1 . 7 . 14 Projectile 523 | . 52 99 123 27 206 2 14 AOE 3 | . . . . . . . 3 Critical Strikes 31 | . 1 3 7 . 15 . 5 Part Disruptions 2 | . . . . 1 1 . . Damage Taken 8905 | . 655 1333 2070 481 3353 43 970 Core 2382 | . 188 360 352 17 452 43 970 Absorbed by Shields 286 | . . . . . 247 . 39 Regen/Repaired (Parts) 58 | . . 58 . . . . . Core Remaining (%) 52 | 100 24 10 36 97 46 . . Volleys Fired 392 | 24 110 73 113 24 48 . . Largest 4 | 2 2 2 3 4 4 . . Hottest 265 | 90 90 96 186 265 265 . . Shots Fired 914 | 48 179 119 307 96 165 . . Gun 819 | 48 177 113 277 72 132 . . Cannon 81 | . . . 24 24 33 . . Launcher 14 | . 2 6 6 . . . . Special . | . . . . . . . . Kinetic 169 | . 9 . 56 41 63 . . Thermal 731 | 48 168 113 245 55 102 . . Explosive 14 | . 2 6 6 . . . . Electromagnetic . | . . . . . . . . Robot Hit Streak 25 | 10 10 25 22 11 21 . . Robot Miss Streak 6 | 3 6 4 5 5 5 . . Penetration Max 1 | . . . . . 1 . . Secondary Targets 10 | . . 4 4 . 2 . . Max Gunslinging Chain 1 | . . 1 1 . 1 . . Shots Hit Robots 529 | 28 71 72 185 50 123 . . Core Hits 291 | 13 26 29 109 46 68 . . Critical Kills . | . . . . . . . . Critical Parts Destroyed . | . . . . . . . . Critical Strikes 17 | 2 1 1 9 3 1 . . Burn 13 | 2 1 1 9 . . . . Blast 4 | . . . . 3 1 . . Melee Attacks 6 | . 1 1 . . 4 . . Impact . | . . . . . . . . Slashing 4 | . . . . . 4 . . Piercing . | . . . . . . . . Sneak Attacks 1 | . 1 . . . . . . Combat Hostiles . | . . . . . . . . Follow-up Attacks . | . . . . . . . . Damage Inflicted 10710 | 346 825 907 3919 1416 3297 . . Guns 7938 | 346 821 751 2553 846 2621 . . Cannons 1460 | . . . 474 340 646 . . Explosions 1199 | . 4 103 884 208 . . . Melee 8 | . . . . . 8 . . Ramming 105 | . . 53 8 22 22 . . Kinetic 2392 | . . . 636 544 1212 . . Thermal 7006 | 346 821 751 2391 642 2055 . . Explosive 1155 | . 4 103 884 164 . . . Electromagnetic 44 | . . . . 44 . . . Impact . | . . . . . . . . Slashing 8 | . . . . . 8 . . Piercing . | . . . . . . . . Highest Corruption 3 | . 3 3 . . 1 . . Average Corruption 2 | . 3 2 . . 1 . . Corruption Purged . | . . . . . . . . Corruption Blocked . | . . . . . . . . Effects 39 | . 21 16 . . 2 . . Message Errors 12 | . 9 3 . . . . . Matter Fused 5 | . 4 1 . . . . . Heat Flow Errors 7 | . 2 3 . . 2 . . Energy Discharges 6 | . 3 3 . . . . . Parts Rejected 1 | . . 1 . . . . . Data Loss (minor) 4 | . 1 3 . . . . . Data Loss (major) 3 | . 2 1 . . . . . Misfires 1 | . . 1 . . . . . Overload Shots . | . . . . . . . . Overflow Damage 60 | . . . 43 . 17 . . Projectiles 20 | . . . 3 . 17 . . Explosions 40 | . . . 40 . . . . Melee . | . . . . . . . . Knockbacks 8 | . . . 2 . 6 . . Impact . | . . . . . . . . Kinetic 6 | . . . 1 . 5 . . Secondary 2 | . . . 1 . 1 . . Self-Inflicted Damage 232 | . 23 139 61 . 9 . . Shots 6 | . 1 3 2 . . . . Rammed 32 | . . 24 . 2 6 . . Targets Rammed 35 | . . 24 1 4 6 . . Kicked 3 | . . . 1 2 . . . Crushed . | . . . . . . . . Highest Temperature 485 | 364 485 191 415 411 281 . . Average Temperature 108 | 124 138 39 85 115 83 . . Received Heat Transfer 1940 | . 231 357 567 117 659 9 . Effects 9 | . 2 . 3 3 1 . . Shutdowns 3 | . . . 1 2 . . . Energy Bleed 3 | . . . 1 1 1 . . Short Circuit 1 | . . . 1 . . . . Damage (major) 2 | . 2 . . . . . . Siege Activations . | . . . . . . . . Martial Activations . | . . . . . . . . Shielding Activations . | . . . . . . . . Robots Disrupted 1 | . . . . 1 . . . Combat Hostiles 1 | . . . . 1 . . . Robots Corrupted . | . . . . . . . . Combat Hostiles . | . . . . . . . . Parts Fried . | . . . . . . . . Impact Corruptions . | . . . . . . . . Robots Melted 3 | . 1 1 1 . . . . Combat Hostiles 3 | . 1 1 1 . . . . Parts Melted 36 | 5 6 2 15 . 8 . . Heat Transferred 16994 | 1065 2112 1844 6030 1500 4443 . . Parts Sabotaged . | . . . . . . . . Parts Stolen . | . . . . . . . . Parts Stripped . | . . . . . . . . Power Chain Reactions . | . . . . . . . . Alert | -11 -10 -9 -8 -7 -6 -5 -5 ------- Run | Yrd Mat Mat Mat Fac Fac Fac DSF Maximum Alert Level 2 | . . . 2 1 1 . . Low Security (%) 76 | 100 100 100 19 81 85 100 100 Level 1 18 | . . . 56 18 14 . . Level 2 5 | . . . 23 . . . . Level 3 . | . . . . . . . . Level 4 . | . . . . . . . . Level 5 . | . . . . . . . . High Security . | . . . . . . . . Max Security . | . . . . . . . . Peak Influence 629 | 15 76 173 629 266 245 95 67 Initial 266 | . . . 72 266 120 95 52 Average 128 | 3 17 74 316 151 95 85 55 Influence Increases 3354 | 60 354 555 1220 568 582 . 15 Destroy 0b10 Robot/C 1980 | . 200 300 780 340 360 . . Destroy 0b10 Robot/NC 190 | 60 20 . 65 25 20 . . Destroy Leader 458 | . 48 90 166 64 90 . . Allied During Kill 29 | . . . . 29 . . . Successful Hack 142 | . 57 37 30 18 . . . Disable Machine 135 | . 15 45 . 75 . . . Destroy Structure 120 | . 14 38 44 17 7 . . Lose Combat Pursuer 300 | . . 45 135 . 105 . 15 Influence Decreases 3287 | 60 352 384 806 909 632 121 23 Entered New Map 674 | . . 2 101 321 126 101 23 Time Decay 2133 | 60 302 312 565 518 356 20 . Lost Part 410 | . 50 70 130 10 150 . . Lost Ally 70 | . . . 10 60 . . . Squads Dispatched 30 | . 1 4 7 8 9 . 1 Investigation 8 | . . 3 2 2 1 . . Extermination 4 | . . . . 2 2 . . Reinforcement 11 | . 1 1 4 1 3 . 1 Assault . | . . . . . . . . Garrison 7 | . . . 1 3 3 . . Intercept . | . . . . . . . . Searches Triggered . | . . . . . . . . Construction Impeded 1 | . . . 1 . . . . Haulers Reinforced . | . . . . . . . . Active Scanning Responses . | . . . . . . . . Cargo Convoy Interrupts 1 | . . . . . 1 . . Stealth | -11 -10 -9 -8 -7 -6 -5 -5 --------- Run | Yrd Mat Mat Mat Fac Fac Fac DSF Distress Signals 7 | . 1 1 4 . 1 . . Communications Jammed . | . . . . . . . . Distress Signals . | . . . . . . . . Times Spotted 165 | . 21 23 62 25 27 1 6 Peak Tracking Total 12 | . 3 6 12 6 9 1 5 Tactical Retreats 11 | . . 3 5 . 2 . 1 Traps | -11 -10 -9 -8 -7 -6 -5 -5 ------- Run | Yrd Mat Mat Mat Fac Fac Fac DSF Traps Triggered 5 | . 1 . 1 1 . . 2 Indirectly . | . . . . . . . . Trap Hack Attempts . | . . . . . . . . Triggered . | . . . . . . . . Disarmed . | . . . . . . . . Reprogrammed . | . . . . . . . . Reused . | . . . . . . . . Traps Extracted . | . . . . . . . . Installed . | . . . . . . . . Triggered . | . . . . . . . . Machines | -11 -10 -9 -8 -7 -6 -5 -5 ---------- Run | Yrd Mat Mat Mat Fac Fac Fac DSF Machines Disabled 9 | . 1 3 . 5 . . . Max in Single Turn 2 | . 1 2 . 2 . . . Machines Repaired . | . . . . . . . . Machines Dismantled . | . . . . . . . . Machines Sabotaged . | . . . . . . . . Overloaded Fab Kills . | . . . . . . . . Hacking | -11 -10 -9 -8 -7 -6 -5 -5 --------- Run | Yrd Mat Mat Mat Fac Fac Fac DSF Machines Accessed 31 | . 9 6 6 6 2 2 . Terminals 22 | . 7 5 5 3 . 2 . Fabricators 3 | . . . . 2 1 . . Repair Stations 1 | . . 1 . . . . . Recycling Units 4 | . 2 . . 1 1 . . Scanalyzers 1 | . . . 1 . . . . Garrison Access . | . . . . . . . . Total Hacks 88 | . 24 25 17 14 5 3 . Successful 49 | . 14 12 11 8 3 1 . Failed 39 | . 10 13 6 6 2 2 . Catastrophic 13 | . 4 5 2 2 . . . Database Lockouts . | . . . . . . . . Manual 63 | . 20 19 14 7 2 1 . Terminals 66 | . 22 19 15 7 . 3 . Fabricators 9 | . . . . 6 3 . . Repair Stations 6 | . . 6 . . . . . Recycling Units 5 | . 2 . . 1 2 . . Scanalyzers 2 | . . . 2 . . . . Garrison Access . | . . . . . . . . Terminal Hacks 21 | . 9 5 5 1 . 1 . Record 1 | . . . . 1 . . . Open DSF 1 | . . . . . . 1 . Terminal Index 4 | . 1 1 2 . . . . Scanalyzer Index 1 | . 1 . . . . . . Alert Level 1 | . 1 . . . . . . Locate Traps 1 | . . . 1 . . . . Dispatch Records 1 | . 1 . . . . . . Security Status 2 | . 1 1 . . . . . Patrol Status 2 | . 1 1 . . . . . Investigation Status 1 | . . 1 . . . . . Recall Reinforcements 1 | . 1 . . . . . . Zone Layout 5 | . 2 1 2 . . . . Fabricator Hacks 7 | . . . . 5 2 . . Load Schematic 3 | . . . . 2 1 . . Build 4 | . . . . 3 1 . . Repair Station Hacks 6 | . . 6 . . . . . Scan Component 3 | . . 3 . . . . . Repair 3 | . . 3 . . . . . Recycling Unit Hacks . | . . . . . . . . Scanalyzer 2 | . . . 2 . . . . Insert Component 1 | . . . 1 . . . . Analyze 1 | . . . 1 . . . . Garrison Access Hacks . | . . . . . . . . Unauthorized Hacks 13 | . 5 1 4 2 1 . . Terminals 9 | . 3 1 4 1 . . . Assimilate 4 | . 2 . 2 . . . . Botnet 1 | . . . 1 . . . . Operators 4 | . 1 1 1 1 . . . Fabricators . | . . . . . . . . Repair Stations . | . . . . . . . . Recycling Units 4 | . 2 . . 1 1 . . Reject 4 | . 2 . . 1 1 . . Scanalyzers . | . . . . . . . . Garrison Access . | . . . . . . . . Data Cores Recovered . | . . . . . . . . Used . | . . . . . . . . Hacking Detections 25 | . 7 6 5 5 1 1 . Full Trace Events 7 | . . 3 1 2 1 . . Feedback Events . | . . . . . . . . Feedback Blocked . | . . . . . . . . Robot Schematics Acquired . | . . . . . . . . Robots Built 4 | . . . . 4 . . . Authchips . | . . . . . . . . Time 134 | . . . . 134 . . . Total Robot Build Rating 16 | . . . . 16 . . . Part Schematics Acquired 1 | . . . 1 . . . . Parts Built 6 | . . . . 4 2 . . Authchips . | . . . . . . . . Time 219 | . . . . 146 73 . . Total Part Build Rating 18 | . . . . 12 6 . . Parts Repaired 3 | . . 3 . . . . . Time 78 | . . 78 . . . . . Parts Recycled . | . . . . . . . . Recycled Matter . | . . . . . . . . Retrieved Matter . | . . . . . . . . Retrieved Components . | . . . . . . . . Parts Scanalyzed 1 | . . . 1 . . . . Part Schematics Acquired 1 | . . . 1 . . . . Parts Damaged . | . . . . . . . . Bothacking | -11 -10 -9 -8 -7 -6 -5 -5 ------------ Run | Yrd Mat Mat Mat Fac Fac Fac DSF Used RIF Installer . | . . . . . . . . Robots Hacked 2 | . 1 1 . . . . . Non-combat 1 | . 1 . . . . . . Combat 1 | . . 1 . . . . . Robot Hacks Applied 2 | . 1 1 . . . . . parse_system 1 | . . 1 . . . . . check_alert 1 | . 1 . . . . . . Relay Couplers Released . | . . . . . . . . Fabnet Peak Effective % . | . . . . . . . . Robots Rewired . | . . . . . . . . Allies Hacked . | . . . . . . . . Hacks Repelled . | . . . . . . . . Allies | -11 -10 -9 -8 -7 -6 -5 -5 -------- Run | Yrd Mat Mat Mat Fac Fac Fac DSF Total Allies 6 | . 1 . 1 4 . . . Largest Group 4 | . 1 1 1 4 . . . Highest-Rated Group 48 | . 10 10 10 48 . . . Highest-Rated Ally 12 | . 10 10 10 12 . . . Total Orders . | . . . . . . . . Ally Attacks 23 | . . . . 23 . . . Total Damage 243 | . . . . 243 . . . Kills 2 | . . . . 2 . . . Allies Corrupted . | . . . . . . . . Allies Melted . | . . . . . . . . Intel | -11 -10 -9 -8 -7 -6 -5 -5 ------- Run | Yrd Mat Mat Mat Fac Fac Fac DSF Active Infowar (turns) 3900 | 21 1542 132 . 1107 1098 . . Optics 1098 | . . . . . 1098 . . Sensors 634 | . 634 . . . . . . Terrain 756 | 21 735 . . . . . . Structural 305 | . 173 132 . . . . . Traps 1107 | . . . . 1107 . . . Robot Analysis Total . | . . . . . . . . Derelict Logs Recovered . | . . . . . . . . Drone Launches . | . . . . . . . . Drone Recoveries . | . . . . . . . . Exploration | -11 -10 -9 -8 -7 -6 -5 -5 ------------- Run | Yrd Mat Mat Mat Fac Fac Fac DSF Turns Passed 7523 | 261 2052 834 1693 1422 1145 57 59 Spaces Moved 3710 | 129 1198 333 650 688 518 112 82 Core 307 | 7 . 19 4 . 83 112 82 Treads 1067 | . . 93 301 325 348 . . Legs 2226 | 122 1198 221 322 363 . . . Wheels . | . . . . . . . . Hover 87 | . . . . . 87 . . Flight 23 | . . . 23 . . . . Fastest Speed 34 | 50 120 50 34 100 50 50 50 Average Speed 124 | 118 120 131 126 141 132 50 50 Slowest Speed 300 | 190 120 160 300 185 165 50 50 Overloaded Moves . | . . . . . . . . Propulsion Burnouts . | . . . . . . . . Robots Hopped . | . . . . . . . . Potential Cave-ins . | . . . . . . . . Cave-ins Triggered . | . . . . . . . . Exploration Rate (%) 35 | 6 97 24 45 19 14 5 72 Regions Visited 7 Branch Regions . Pre-discovered Areas . | . . . . . . . . Known Exits Taken 2 | . 1 . . . . 1 . Unknown Exits Taken 5 | 1 . 1 1 1 1 . . Scrap Searched . | . . . . . . . . Spaces Dug 8 | . 8 . . . . . . Terrain Destroyed 127 | . 12 50 43 14 8 . . Melee . | . . . . . . . . Projectile 16 | . . . 4 4 8 . . AOE 111 | . 12 50 39 10 . . . Terrain Rammed . | . . . . . . . . Walls Destroyed . | . . . . . . . . Machines Disabled . | . . . . . . . . Actions | -11 -10 -9 -8 -7 -6 -5 -5 --------- Run | Yrd Mat Mat Mat Fac Fac Fac DSF Total 5862 | 189 1636 611 1288 1079 847 112 100 Wait 1321 | 21 290 120 373 287 217 . 13 Move 3703 | 128 1197 332 649 687 517 111 82 Hop . | . . . . . . . . Pick Up 145 | 9 12 27 53 28 15 1 . Fast Attach . | . . . . . . . . Attach 86 | 7 9 18 31 7 14 . . Detach 6 | . 4 . 1 . 1 . . Swap 74 | . 7 6 30 18 13 . . Drop 89 | . 6 10 37 24 12 . . Fire 392 | 24 110 73 113 24 48 . . Melee 6 | . 1 1 . . 4 . . Ram 30 | . . 24 . . 6 . . Kick 3 | . . . 1 2 . . . Crush 2 | . . . . 2 . . . Escape Stasis 5 | . . . . . . . 5 Rewire . | . . . . . . . . Trap . | . . . . . . . . Miscellaneous . | . . . . . . . . Route ------- -11/Scrapyard -10/Materials (discovered 4 exits: *Mat x3 / [*Min]) -9/Materials (discovered 2 exits: *Mat / [*Min]) -8/Materials -7/Factory -6/Factory (discovered 2 exits: *Fac / [*Low]) -5/Factory -5/DSF History --------- Turn | Location | Event 21 | -11/Scrapyard | Discovered new exit (range 16) 262 | -11/Scrapyard | Entered Materials 301 | -10/Materials | Build established: Mutant 1029 | -10/Materials | Discovered new exit (range 16) 1136 | -10/Materials | Discovered new exit (range 16) 1250 | -10/Materials | Discovered new exit (range 16) 1542 | -10/Materials | Core integrity fell below 50% 1698 | -10/Materials | Lost 4 parts (1p1n1u1w) 2242 | -10/Materials | Discovered new exit (range 15) 2312 | -10/Materials | Identified exit to Materials 2314 | -10/Materials | Entered another Materials area 2314 | -9/Materials | Accompanied by 1 ally 2314 | -9/Materials | Evolved 2 slots: Propulsion x1, Utility x1 2337 | -9/Materials | Discovered new exit (range 11) 2434 | -9/Materials | Core integrity fell below 50% 2480 | -9/Materials | Lost 6 parts (1n1u4w) 2631 | -9/Materials | Core integrity fell below 20% 2711 | -9/Materials | Lost 3 parts (1p1n1u) 2772 | -9/Materials | Build established: Scavenger-Mutant 2825 | -9/Materials | Discovered new exit (range 16) 2919 | -9/Materials | Repaired Aluminum Leg 2946 | -9/Materials | Repaired Heat Sink 2974 | -9/Materials | Repaired Heat Sink 3148 | -9/Materials | Entered another Materials area 3148 | -8/Materials | Evolved 2 slots: Power x1, Weapon x1 3467 | -8/Materials | Build established: Scavenger-Gunner 4460 | -8/Materials | Lost 7 parts (2p1n2u2w) 4466 | -8/Materials | Core integrity fell below 50% 4497 | -8/Materials | Destroyed 13 combat bots 4504 | -8/Materials | Lost 4 parts (2n2w) 4521 | -8/Materials | Garrison activated, responded to threat 4611 | -8/Materials | Discovered new exit (range 10) 4841 | -8/Materials | Entered Factory 4841 | -7/Factory | Evolved 2 slots: Propulsion x1, Weapon x1 5281 | -7/Factory | Fabricated Adv. Treads? 5362 | -7/Factory | Build established: Scavenger-Skirmisher 5939 | -7/Factory | Build established: Skirmisher 5976 | -7/Factory | Fabricated S-27 Virus (x4) 6004 | -7/Factory | Garrison activated, responded to threat 6051 | -7/Factory | Fabricated Adv. Treads? 6074 | -7/Factory | Lost 3 allies 6250 | -7/Factory | Discovered new exit (range 9) 6263 | -7/Factory | Entered another Factory area 6263 | -6/Factory | Evolved 2 slots: Propulsion x1, Utility x1 6819 | -6/Factory | Discovered new exit (range 16) 6927 | -6/Factory | Garrison activated, responded to threat 7038 | -6/Factory | Cargo convoy interrupted 7059 | -6/Factory | Fabricated Adv. Treads (x2) 7282 | -6/Factory | Lost 13 parts (3p4n2u4w) 7393 | -6/Factory | Discovered new exit (range 11) 7408 | -6/Factory | Core integrity fell below 50% 7408 | -6/Factory | Entered another Factory area 7408 | -5/Factory | Evolved 2 slots: Utility x2 7432 | -5/Factory | Identified exit to DSF 7465 | -5/Factory | Entered DSF 7499 | -5/DSF | Core integrity fell below 50% 7504 | -5/DSF | Additional patrols routed to DSF 7506 | -5/DSF | Build established: Mutant 7513 | -5/DSF | Core integrity fell below 20% 7524 | -5/DSF | Destroyed by C-35 Carver with Carbide Saw Last Messages --------------- patrols. Knocked back. C-35 Carver destroyed. Triggered Stasis Trap. A bubble of rippling energy engulfs the area. Field strength at 94. Field strength at 88. Field strength at 76. Field strength at 70. Slug penetrates Wall. Field strength at 57. Field strength at 46. Knocked back. Acquired 4 matter. Triggered Alarm Trap. An alarm sounds. Field strength at 17. Field strength at 9. Field strength at 1. Stasis field depleted. Map ----- +----------------------------------------------------+ | | | | | | | | | | | | | | | | | | | | | | | | | | | ???????????????????????????????????????????????? | | ???????????????????????????????????????????????? | | ???????????????????????????????????????????????? | | ???????????????????????????????????????????????? | | ???????????????????????????????????????????????? | | ???????????????????????????????????????????????? | | ????????????????????#########??????????????????? | | ?????????????????????!!!!! #?###??????????????? | | ?????????????????????!!!!! #]]]???????????????? | | ?????????????????????? ?????????????????? | | ?????????????????????? ???????????????????? | | ??????????????????????# #????????????????????? | | ????????????????????###@ ###??????????????????? | | ????????????????????# c %%#??????????????????? | | ????????????????????# %%#??????????????????? | | ????????????????????# %%##?????????????????? | | ????????????????????### #;;#?????????????????? | | ????????????????????#!! !!##?????????????????? | | ????????????????????#!! !!#??????????????????? | | ????????????????????#!!c !!#??????????????????? | | ??????################# ###??????????????????? | | ??????# ## #!!!### ^ ##???????????????????? | | ??????# ## #!!!##H A##]]]# #??????????? | | ??????# =% ?????????? | | ??????# % = ????????? | | ??????# ?????????? | | ??????#!! ##]]]#===## !A##!!!#===##?????????? | | ??????#!! ##]]]#===###A ##?!!!#??=#??????????? | | ??????### ############ ###?###??????????????? | | ???????#! #??????# ! !!##?????????????????? | | ???????#! #??????# ! #?????????????????? | | ???????#! #??????#! !##?????????????????? | | ???????## ###?????#### #??????????????????? | | ???????#! #?????# ##?????????????????? | | ???????#! #??????# #?????????????????? | | ???????## ########## ##?????????????????? | | ??????### ###!!#!! ### ###??????????????????? | +----------------------------------------------------+ Best States ------------- Heat Dissipation 89 Energy Generation 29 Energy Capacity 500 Matter Stores 300 Matter Capacity 300 Sight Range 22 Robot Scan Range 14 Terrain Scan Range 16 Terrain Scan Density 10 Armor Coverage 150 Evasion (%) 63 Recoil Reduction 5 Force Boost 20 Item Schematics ----------------- Adv. Treads | -8/Materials | Scanalyzed Robot Schematics ------------------ None Fabricated ------------ Adv. Treads | x2 | -7/Factory S-27 Virus | x4 | -7/Factory | Preloaded Adv. Treads | x2 | -7/Factory Adv. Treads | x2 | -6/Factory Repaired ---------- Aluminum Leg | 72% | -9/Materials Heat Sink | 23% | -9/Materials Heat Sink | 66% | -9/Materials Alien Tech Used ----------------- None Achievements -------------- Streaker Challenges ------------ None Game ------ Seed AlloyDecoyScanner Manual? 0 Play Time 01:20:27 Cumulative 27.5 hours Start 2025.10.13 @ 12:54:09 End 2025.10.13 @ 16:13:39 Sessions 3 Manual Loads 0 Difficulty Rogue Special Mode None Game No. 67 Rogue 67 Adventurer 0 Explorer 0 Win Type - Total 0 Types 0/0/0/0/0/0/0/0/0/0 Lore% 22 Gallery% 29 Achievement% 26 Wizard Run 0 Options --------- Layout 2 ASCII 0 Keyboard 0 Movement Numpad Keybinds 0 Fullscreen 1 Font 24/Smallcaps Map View 50x44 Zoom Use 0% Tactical HUD 0 Map Filters NONE Filters NONE Steam 1 RUN: 2ec0dc58-6dce-417a-aa52-500bc08f4da3